bitfinex-derivatives/quotes_BTCF0:USTF0_20241005
["timestamp","ask_amount","ask_price","bid_price","bid_amount"]
[1728095677818,0.058391,62063.0,62061.0,0.122293]
[1728095680528,0.419191,62063.0,62061.0,0.122293]
[1728095680825,0.05779642,62062.0,62061.0,0.122293]
[1728095681537,0.44788837,62063.0,62061.0,0.122293]
[1728095681832,0.05779642,62062.0,62061.0,0.122293]
[1728095682133,0.44788837,62063.0,62061.0,0.122293]
[1728095682332,0.05779642,62062.0,62061.0,0.122293]
[1728095683018,0.05779642,62062.0,62061.0,0.121293]
[1728095683218,0.05879642,62062.0,62061.0,0.121293]
[1728095683425,0.05979642,62062.0,62061.0,0.121293]
[1728095686122,0.002,62062.0,62061.0,0.121293]
[1728095688026,0.058392,62062.0,62061.0,0.121293]
[1728095689433,0.058392,62062.0,62061.0,0.16959744]
[1728095690130,0.058392,62062.0,62061.0,0.121293]
[1728095696634,0.058392,62062.0,62061.0,0.089093]
[1728095698339,0.058392,62062.0,62061.0,0.056393]
[1728095699434,0.056393,62061.0,62060.0,0.0329]
[1728095701646,0.057393,62061.0,62060.0,0.23624789]
[1728095701844,0.057393,62061.0,62060.0,0.12280232]
[1728095702151,0.057393,62061.0,62060.0,0.20334979]
[1728095702641,0.058393,62061.0,62060.0,0.20334979]
[1728095703538,0.058393,62061.0,62060.0,0.12280232]
[1728095705552,0.058393,62061.0,62060.0,0.12280464]
[1728095709654,0.058393,62061.0,62058.0,0.056395]
[1728095709655,0.056395,62059.0,62058.0,0.056395]
[1728095710948,0.057395,62059.0,62058.0,0.056395]
[1728095712355,0.058395,62059.0,62058.0,0.056395]
[1728095716654,0.002,62059.0,62058.0,0.27580576]
[1728095717555,0.058395,62059.0,62058.0,0.27580576]
[1728095719657,0.058395,62059.0,62058.0,0.17919968]
[1728095721560,0.058395,62059.0,62058.0,0.27580576]
[1728095723164,0.002,62059.0,62058.0,0.27580576]
[1728095724555,0.002,62059.0,62058.0,0.056395]
[1728095725664,0.002,62059.0,62058.0,0.146395]
[1728095731563,0.0514646,62059.0,62058.0,0.146395]
[1728095732564,0.0514646,62059.0,62058.0,0.056395]
[1728095732755,0.0514646,62059.0,62058.0,0.146395]
[1728095735454,0.05146472,62059.0,62058.0,0.146395]
[1728095736268,0.05146472,62059.0,62058.0,0.056395]
[1728095736463,0.08436472,62059.0,62058.0,0.056395]
[1728095739063,0.44516472,62059.0,62058.0,0.056395]
[1728095739272,0.50296388,62059.0,62058.0,0.056395]
[1728095739767,0.3957,62059.0,62058.0,0.056395]
[1728095740363,0.0349,62059.0,62058.0,0.056395]
[1728095740774,0.3957,62059.0,62058.0,0.056395]
[1728095745163,0.452095,62059.0,62058.0,0.056395]
[1728095746670,0.50156027,62059.0,62058.0,0.056395]
[1728095747577,0.14076027,62059.0,62058.0,0.056395]
[1728095747776,0.50156027,62059.0,62058.0,0.056395]
[1728095748279,0.14076027,62059.0,62058.0,0.056395]
[1728095748472,0.50156027,62059.0,62058.0,0.056395]
[1728095750078,0.14076027,62059.0,62058.0,0.056395]
[1728095750279,0.50156027,62059.0,62058.0,0.056395]
[1728095752866,0.14076027,62059.0,62058.0,0.056395]
[1728095753076,0.50156027,62059.0,62058.0,0.056395]
[1728095754773,0.452095,62059.0,62058.0,0.056395]
[1728095754973,0.091295,62059.0,62058.0,0.056395]
[1728095755176,0.452095,62059.0,62058.0,0.056395]
[1728095761683,0.452095,62059.0,62058.0,0.17920397]
[1728095762083,0.452095,62059.0,62058.0,0.12280897]
[1728095764292,0.452095,62059.0,62058.0,0.12280909]
[1728095764483,0.451095,62059.0,62058.0,0.12280909]
[1728095764687,0.452095,62059.0,62058.0,0.12280909]
[1728095764883,0.091295,62059.0,62058.0,0.12280909]
[1728095765087,0.452095,62059.0,62058.0,0.12280909]
[1728095765287,0.451095,62059.0,62058.0,0.12280909]
[1728095765588,0.452095,62059.0,62058.0,0.12280909]
[1728095768691,0.452095,62059.0,62056.0,0.11937536]
[1728095769884,0.452095,62059.0,62056.0,0.17577236]
[1728095770893,0.056396,62058.0,62056.0,0.17577236]
[1728095772297,0.04946532,62057.0,62056.0,0.17577236]
[1728095773992,0.05046532,62057.0,62056.0,0.17577236]
[1728095774401,0.05146532,62057.0,62056.0,0.17577236]
[1728095774989,0.002,62057.0,62056.0,0.17577236]
[1728095776785,0.002,62057.0,62056.0,0.29858142]
[1728095782504,0.002,62057.0,62056.0,0.29858143]
[1728095783890,0.05146549,62057.0,62056.0,0.17577236]
[1728095784694,0.26099361,62057.0,62056.0,0.17577236]
[1728095785000,0.31879365,62057.0,62056.0,0.65921236]
[1728095785305,0.10926553,62057.0,62056.0,0.65921236]
[1728095786003,0.10926553,62057.0,62056.0,0.17577236]
[1728095789408,0.10926326,62057.0,62056.0,0.17577236]
[1728095791196,0.05146322,62057.0,62056.0,0.17577236]
[1728095791903,0.002,62057.0,62056.0,0.17577236]
[1728095795001,0.0113,62063.0,62056.0,1.25921236]
[1728095795205,0.0113,62063.0,62062.0,0.146392]
[1728095795397,0.3721,62067.0,62065.0,0.056388]
[1728095795600,0.3608,62067.0,62066.0,0.09]
[1728095797402,0.3618,62067.0,62066.0,0.09]
[1728095797596,0.3628,62067.0,62066.0,0.09]
[1728095798002,0.3628,62067.0,62066.0,0.146388]
[1728095798804,0.41225943,62067.0,62066.0,0.146388]
[1728095799006,0.47005238,62067.0,62066.0,0.146388]
[1728095799207,0.10925238,62067.0,62066.0,0.146388]
[1728095801112,0.16563938,62067.0,62066.0,0.146388]
[1728095804106,0.10784667,62067.0,62066.0,0.146388]
[1728095804303,0.16563962,62067.0,62066.0,0.146388]
[1728095805010,0.10784667,62067.0,62066.0,0.146388]
[1728095805415,0.16563962,62067.0,62066.0,0.146388]
[1728095806806,0.058387,62067.0,62066.0,0.146388]
[1728095809817,0.002,62067.0,62059.0,0.0038]
[1728095810018,0.002,62067.0,62062.0,0.146391]
[1728095810019,0.056391,62064.0,62062.0,0.146391]
[1728095810216,0.056391,62063.0,62062.0,0.146391]
[1728095811018,0.056391,62063.0,62062.0,0.147391]
[1728095811923,0.057391,62063.0,62062.0,0.147391]
[1728095812613,0.058391,62063.0,62062.0,0.147391]
[1728095813809,0.10785104,62063.0,62062.0,0.147391]
[1728095819128,0.10785129,62063.0,62062.0,0.147391]
[1728095820422,0.10785129,62063.0,62062.0,0.057391]
[1728095820623,0.31720761,62063.0,62062.0,0.057391]
[1728095820923,0.10785129,62063.0,62062.0,0.057391]
[1728095821525,0.16564495,62063.0,62062.0,0.057391]
[1728095821719,0.25564495,62063.0,62062.0,0.001]
[1728095821918,0.148391,62063.0,62062.0,0.001]
[1728095823332,0.509191,62063.0,62062.0,0.001]
[1728095823928,0.419191,62063.0,62062.0,0.001]
[1728095824933,0.418191,62063.0,62062.0,0.001]
[1728095825233,0.419191,62063.0,62062.0,0.001]
[1728095830238,0.058391,62063.0,62062.0,0.001]
[1728095832139,0.148391,62063.0,62062.0,0.001]
[1728095838057,0.20618785,62063.0,62062.0,0.001]
[1728095838358,0.25565061,62063.0,62062.0,0.001]
[1728095838557,0.20618785,62063.0,62062.0,0.001]
[1728095838758,0.20618785,62063.0,62062.0,0.057392]
[1728095839556,0.11618785,62063.0,62062.0,0.057392]
[1728095841050,0.20618785,62063.0,62062.0,0.057392]
[1728095841358,0.20618785,62063.0,62062.0,0.001]
[1728095842249,0.56698785,62063.0,62062.0,0.001]
[1728095842858,0.6164505,62063.0,62062.0,0.001]
[1728095843059,0.2556505,62063.0,62062.0,0.001]
[1728095844462,0.148391,62063.0,62062.0,0.001]
[1728095846969,0.058391,62063.0,62062.0,0.001]
[1728095850067,0.419191,62063.0,62062.0,0.001]
[1728095851259,0.058391,62063.0,62062.0,0.001]
[1728095859366,0.10785384,62063.0,62062.0,0.001]
[1728095859568,0.16565077,62063.0,62062.0,0.001]
[1728095865871,0.10785384,62063.0,62062.0,0.001]
[1728095866073,0.16565077,62063.0,62062.0,0.001]
[1728095866274,0.058391,62063.0,62062.0,0.001]
[1728095869174,0.058391,62063.0,62062.0,0.091]
[1728095869381,0.058391,62063.0,62062.0,0.147392]
[1728095871890,0.002,62063.0,62062.0,0.147392]
[1728095874383,0.05146206,62063.0,62062.0,0.147392]
[1728095874887,0.10925808,62063.0,62062.0,0.147392]
[1728095876588,0.10925807,62063.0,62062.0,0.147392]
[1728095880888,0.10925808,62063.0,62062.0,0.147392]
[1728095881481,0.002,62063.0,62062.0,0.147392]
[1728095889591,0.05146206,62063.0,62062.0,0.147392]
[1728095889794,0.10925808,62063.0,62062.0,0.147392]
[1728095892487,0.16564908,62063.0,62062.0,0.147392]
[1728095894895,0.10925808,62063.0,62062.0,0.147392]
[1728095895284,0.05146206,62063.0,62062.0,0.147392]
[1728095895485,0.10925808,62063.0,62062.0,0.147392]
[1728095896500,0.002,62063.0,62062.0,0.147392]
[1728095897690,0.002,62063.0,62062.0,0.057392]
[1728095898005,0.002,62063.0,62062.0,0.147392]
[1728095904606,0.10925271,62063.0,62062.0,0.147392]
[1728095911609,0.002,62063.0,62062.0,0.147392]
[1728095926510,0.10924935,62063.0,62062.0,0.147392]
[1728095928726,0.05145803,62063.0,62062.0,0.147392]
[1728095929415,0.10924935,62063.0,62062.0,0.147392]
[1728095929615,0.05145756,62063.0,62062.0,0.147392]
[1728095934725,0.002,62063.0,62062.0,0.147392]
[1728095940324,0.002,62063.0,62062.0,0.057392]
[1728095940525,0.002,62063.0,62062.0,0.147392]
[1728095949631,0.10924885,62063.0,62062.0,0.147392]
[1728095953231,0.10924915,62063.0,62062.0,0.147392]
[1728095956838,0.002,62063.0,62062.0,0.147392]
[1728095963749,0.002,62063.0,62062.0,0.057392]
[1728095963953,0.002,62063.0,62062.0,0.147392]
[1728095964843,0.10925219,62063.0,62062.0,0.147392]
[1728095968456,0.10925203,62063.0,62062.0,0.147392]
[1728095971856,0.002,62063.0,62062.0,0.147392]
[1728095977457,0.058391,62063.0,62062.0,0.001]
[1728095978053,0.058391,62063.0,62062.0,0.091]
[1728095979847,0.10785266,62063.0,62062.0,0.091]
[1728095983967,0.13620324,62063.0,62062.0,0.091]
[1728095985361,0.13620324,62063.0,62062.0,0.001]
[1728095985559,0.13620324,62063.0,62062.0,0.091]
[1728095986459,0.1939988,62063.0,62062.0,0.091]
[1728095986764,0.08674158,62063.0,62062.0,0.091]
[1728095993863,0.19399819,62063.0,62062.0,0.091]
[1728095995360,0.13620296,62063.0,62062.0,0.091]
[1728095995661,0.19399819,62063.0,62062.0,0.091]
[1728095995860,0.13620296,62063.0,62062.0,0.091]
[1728095996062,0.19399819,62063.0,62062.0,0.091]
[1728095996263,0.13620296,62063.0,62062.0,0.091]
[1728095996770,0.19399819,62063.0,62062.0,0.091]
[1728095997257,0.13620296,62063.0,62062.0,0.091]
[1728095997663,0.19399819,62063.0,62062.0,0.091]
[1728095998963,0.28399819,62063.0,62062.0,0.001]
[1728095999276,0.28399819,62063.0,62056.0,0.0038]
[1728095999277,0.056396,62057.0,62056.0,0.0038]
[1728095999461,0.04946138,62057.0,62051.0,0.0038]
[1728095999661,0.146401,62052.0,62051.0,0.0038]
[1728095999864,0.146401,62052.0,62049.0,0.05882107]
[1728095999865,0.13946138,62052.0,62049.0,0.05882107]
[1728096000069,0.056403,62050.0,62049.0,0.05882107]
[1728096000270,0.10586438,62050.0,62049.0,0.05882107]
[1728096001874,0.057403,62050.0,62049.0,0.05882107]
[1728096003083,0.057403,62050.0,62049.0,0.10713077]
[1728096003275,0.058403,62050.0,62049.0,0.10713077]
[1728096003573,0.058403,62050.0,62049.0,0.05882107]
[1728096004474,0.08712688,62050.0,62049.0,0.05882107]
[1728096004973,0.058403,62050.0,62049.0,0.05882107]
[1728096007876,0.058403,62050.0,62049.0,0.14882107]
[1728096016977,0.10787507,62050.0,62049.0,0.14882107]
[1728096021787,0.10787494,62050.0,62049.0,0.14882107]
[1728096023895,0.058403,62050.0,62049.0,0.14882107]
[1728096031093,0.058403,62050.0,62049.0,0.19713077]
[1728096031299,0.058403,62050.0,62049.0,0.14882107]
[1728096031904,0.058403,62050.0,62049.0,0.19713077]
[1728096034198,0.058403,62050.0,62049.0,0.14882107]
[1728096034402,0.089503,62050.0,62049.0,0.14882107]
[1728096035397,0.089503,62050.0,62049.0,0.19713077]
[1728096036604,0.058403,62050.0,62049.0,0.19713077]
[1728096039006,0.10787513,62050.0,62049.0,0.14882107]
[1728096039209,0.16568292,62050.0,62049.0,0.14882107]
[1728096040910,0.10787513,62050.0,62049.0,0.14882107]
[1728096041115,0.16568292,62050.0,62049.0,0.14882107]
[1728096042622,0.10787513,62050.0,62049.0,0.14882107]
[1728096046923,0.058403,62050.0,62049.0,0.14882107]
[1728096051534,0.058403,62050.0,62049.0,0.197203]
[1728096052014,0.058403,62050.0,62049.0,0.14882107]
[1728096052215,0.058403,62050.0,62049.0,0.197203]
[1728096052524,0.058403,62050.0,62049.0,0.14882107]
[1728096053318,0.058403,62050.0,62049.0,0.197203]
[1728096054021,0.10787559,62050.0,62049.0,0.14882107]
[1728096059126,0.46867559,62050.0,62049.0,0.14882107]
[1728096062029,0.419203,62050.0,62049.0,0.14882107]
[1728096063227,0.419203,62050.0,62049.0,0.10720158]
[1728096063421,0.419203,62050.0,62049.0,0.00241707]
[1728096064027,0.058403,62050.0,62049.0,0.00241707]
[1728096064338,0.419203,62050.0,62049.0,0.00241707]
[1728096067826,0.450203,62050.0,62049.0,0.00241707]
[1728096068131,0.089403,62050.0,62049.0,0.00241707]
[1728096068534,0.450203,62050.0,62049.0,0.00241707]
[1728096068724,0.089403,62050.0,62049.0,0.00241707]
[1728096068921,0.49967641,62050.0,62049.0,0.00241707]
[1728096069125,0.19668569,62050.0,62049.0,0.00241707]
[1728096069330,0.49967641,62050.0,62049.0,0.00241707]
[1728096069531,0.55748569,62050.0,62049.0,0.00241707]
[1728096070131,0.55648569,62050.0,62049.0,0.00241707]
[1728096070324,0.55748569,62050.0,62049.0,0.00241707]
[1728096071843,0.19668569,62050.0,62049.0,0.00241707]
[1728096072032,0.49967641,62050.0,62049.0,0.00241707]
[1728096072228,0.55748569,62050.0,62049.0,0.00241707]
[1728096072428,0.19668569,62050.0,62049.0,0.00241707]
[1728096072728,0.49967641,62050.0,62049.0,0.00241707]
[1728096072943,0.19668569,62050.0,62049.0,0.00241707]
[1728096073242,0.49967641,62050.0,62049.0,0.00241707]
[1728096073430,0.55748569,62050.0,62049.0,0.00241707]
[1728096073830,0.19668569,62050.0,62049.0,0.00241707]
[1728096074042,0.49967641,62050.0,62049.0,0.00241707]
[1728096074338,0.55748569,62050.0,62049.0,0.00241707]
[1728096075433,0.55748568,62050.0,62049.0,0.00241707]
[1728096077041,0.450203,62050.0,62049.0,0.00241707]
[1728096078928,0.089403,62050.0,62049.0,0.00241707]
[1728096079130,0.450203,62050.0,62049.0,0.00241707]
[1728096079841,0.089403,62050.0,62049.0,0.00241707]
[1728096080040,0.450203,62050.0,62049.0,0.00241707]
[1728096084343,0.056406,62047.0,62046.0,0.0038]
[1728096084537,0.540203,62050.0,62045.0,0.04838051]
[1728096085446,0.056406,62046.0,62045.0,0.04838051]
[1728096087247,0.057406,62046.0,62045.0,0.04838051]
[1728096087638,0.058406,62046.0,62045.0,0.04838051]
[1728096088842,0.058406,62046.0,62045.0,0.10478751]
[1728096090349,0.058406,62046.0,62045.0,0.056407]
[1728096092150,0.10788089,62046.0,62045.0,0.056407]
[1728096092450,0.16569191,62046.0,62045.0,0.056407]
[1728096094953,0.10788089,62046.0,62045.0,0.056407]
[1728096095165,0.16569191,62046.0,62045.0,0.056407]
[1728096095754,0.16569198,62046.0,62045.0,0.056407]
[1728096096054,0.10788096,62046.0,62045.0,0.056407]
[1728096096439,0.16569198,62046.0,62045.0,0.056407]
[1728096097242,0.10788096,62046.0,62045.0,0.056407]
[1728096097642,0.16569198,62046.0,62045.0,0.056407]
[1728096098443,0.10788096,62046.0,62045.0,0.056407]
[1728096098648,0.16569198,62046.0,62045.0,0.056407]
[1728096099143,0.002,62046.0,62045.0,0.056407]
[1728096099357,0.058406,62046.0,62045.0,0.12089725]
[1728096106447,0.058406,62046.0,62045.0,0.056407]
[1728096107048,0.1656925,62046.0,62045.0,0.056407]
[1728096107450,0.05641,62042.0,62041.0,0.0038]
[1728096107755,0.10588516,62042.0,62040.0,0.056412]
[1728096107955,0.04947516,62041.0,62040.0,0.056412]
[1728096108158,0.04947516,62041.0,62040.0,0.146412]
[1728096108661,0.04947516,62041.0,62040.0,0.17498315]
[1728096110559,0.05047516,62041.0,62040.0,0.17498315]
[1728096111064,0.05147516,62041.0,62040.0,0.17498315]
[1728096114060,0.002,62041.0,62040.0,0.32449334]
[1728096114266,0.40081014,62045.0,62040.0,0.44732761]
[1728096114464,0.45637714,62045.0,62044.0,0.09677059]
[1728096114656,0.44507714,62045.0,62044.0,0.21960486]
[1728096115566,0.44707714,62045.0,62044.0,0.21960486]
[1728096115766,0.44707714,62045.0,62044.0,0.12283427]
[1728096117067,0.44607714,62045.0,62044.0,0.12283427]
[1728096117262,0.44707714,62045.0,62044.0,0.12383427]
[1728096122168,0.49655261,62045.0,62044.0,0.001]
[1728096123662,0.44014561,62045.0,62044.0,0.001]
[1728096123867,0.44014561,62045.0,62044.0,0.057408]
[1728096124166,0.05147547,62045.0,62044.0,0.057408]
[1728096129270,0.002,62045.0,62044.0,0.1802407]
[1728096131664,0.002,62045.0,62044.0,0.27701129]
[1728096134867,0.058407,62045.0,62044.0,0.1802407]
[1728096137174,0.058407,62045.0,62044.0,0.001]
[1728096137175,0.19788257,62045.0,62044.0,0.001]
[1728096138774,0.22713818,62045.0,62044.0,0.001]
[1728096139071,0.22714246,62045.0,62044.0,0.001]
[1728096139868,0.16973546,62045.0,62040.0,0.0038]
[1728096140069,0.146411,62041.0,62040.0,0.0038]
[1728096140369,0.146411,62041.0,62038.0,0.056414]
[1728096140573,0.3608,62040.0,62039.0,0.056413]
[1728096140875,0.55809166,62040.0,62039.0,0.056413]
[1728096141175,0.58919166,62040.0,62039.0,0.056413]
[1728096141477,0.59612381,62040.0,62039.0,0.056413]
[1728096142878,0.59812381,62040.0,62039.0,0.057413]
[1728096143077,0.64760384,62040.0,62039.0,0.057413]
[1728096144379,0.540312,62040.0,62039.0,0.057413]
[1728096147576,0.179512,62040.0,62039.0,0.057413]
[1728096147774,0.540312,62040.0,62039.0,0.057413]
[1728096148576,0.179512,62040.0,62039.0,0.26081119]
[1728096148778,0.540312,62040.0,62039.0,0.26081119]
[1728096148982,0.540312,62040.0,62039.0,0.1379656]
[1728096152878,0.179512,62040.0,62039.0,0.1379656]
[1728096153085,0.540312,62040.0,62039.0,0.1379656]
[1728096153576,0.540312,62040.0,62039.0,0.057413]
[1728096155578,0.540312,62040.0,62039.0,0.04932518]
[1728096157786,0.179512,62040.0,62039.0,0.04932518]
[1728096158186,0.540312,62040.0,62039.0,0.04932518]
[1728096160387,0.5897923,62040.0,62039.0,0.001]
[1728096164792,0.64761106,62040.0,62039.0,0.001]
[1728096167493,0.540312,62040.0,62039.0,0.001]
[1728096167690,0.450312,62040.0,62039.0,0.001]
[1728096167994,0.540312,62040.0,62039.0,0.001]
[1728096182508,0.64761226,62040.0,62039.0,0.001]
[1728096190520,0.540312,62040.0,62039.0,0.001]
[1728096192725,0.509212,62040.0,62039.0,0.001]
[1728096197527,0.5586944,62040.0,62039.0,0.001]
[1728096197924,0.61651395,62040.0,62039.0,0.001]
[1728096202930,0.61651402,62040.0,62039.0,0.001]
[1728096204330,0.61651407,62040.0,62039.0,0.001]
[1728096204535,0.509212,62040.0,62039.0,0.001]
[1728096212432,0.61651469,62040.0,62039.0,0.001]
[1728096215741,0.25571469,62040.0,62039.0,0.001]
[1728096216036,0.55869463,62040.0,62039.0,0.001]
[1728096216237,0.55910269,62040.0,62036.0,0.0038]
[1728096216438,0.058412,62040.0,62039.0,0.001]
[1728096216636,0.10789452,62040.0,62039.0,0.001]
[1728096216843,0.46869452,62040.0,62039.0,0.001]
[1728096217031,0.52651445,62040.0,62039.0,0.001]
[1728096217338,0.056415,62038.0,62036.0,0.0048]
[1728096217544,0.13948252,62037.0,62036.0,0.001]
[1728096218037,0.13948252,62037.0,62035.0,0.056416]
[1728096218242,0.04948252,62036.0,62035.0,0.056416]
[1728096220438,0.001,62036.0,62035.0,0.18026778]
[1728096220836,0.002,62036.0,62035.0,0.18026778]
[1728096223747,0.058416,62036.0,62035.0,0.18026778]
[1728096227447,0.1078992,62036.0,62035.0,0.057416]
[1728096228350,0.10789914,62036.0,62035.0,0.057416]
[1728096230845,0.10789914,62036.0,62035.0,0.001]
[1728096233555,0.16571987,62036.0,62035.0,0.001]
[1728096235457,0.058416,62036.0,62035.0,0.1238531]
[1728096244666,0.058416,62036.0,62035.0,0.1802691]
[1728096250465,0.10789837,62036.0,62035.0,0.057416]
[1728096251964,0.10789837,62036.0,62033.0,0.02171605]
[1728096252271,0.04948237,62035.0,62032.0,0.0038]
[1728096252475,0.04948237,62035.0,62033.0,0.056418]
[1728096254466,0.05048237,62035.0,62033.0,0.056418]
[1728096254667,0.04948237,62034.0,62033.0,0.056418]
[1728096255168,0.13948237,62034.0,62033.0,0.056418]
[1728096256071,0.14048237,62034.0,62033.0,0.056418]
[1728096256975,0.14148237,62034.0,62033.0,0.056418]
[1728096257677,0.05166802,62034.0,62033.0,0.17926922]
[1728096262271,0.05166802,62034.0,62033.0,0.17926928]
[1728096264587,0.05166802,62034.0,62033.0,0.056418]
[1728096267588,0.10808502,62034.0,62033.0,0.056418]
[1728096275392,0.05166802,62034.0,62029.0,0.0038]
[1728096275593,0.09,62030.0,62029.0,0.060222]
[1728096275798,0.146421,62030.0,62029.0,0.056422]
[1728096276183,0.09,62030.0,62026.0,0.25232713]
[1728096276384,0.0428,62033.0,62025.0,0.0038]
[1728096276385,0.056425,62026.0,62025.0,0.0038]
[1728096276694,0.056427,62024.0,62022.0,0.056428]
[1728096276889,0.09,62023.0,62022.0,0.056428]
[1728096277284,0.09,62023.0,62020.0,0.09915718]
[1728096277589,0.146427,62023.0,62022.0,0.08056533]
[1728096277786,0.146427,62023.0,62021.0,0.08056533]
[1728096278092,0.147427,62023.0,62021.0,0.08056533]
[1728096278296,0.148427,62023.0,62021.0,0.08056533]
[1728096278492,0.148427,62023.0,62020.0,0.08298351]
[1728096278796,0.146427,62023.0,62020.0,0.08298351]
[1728096278999,0.148427,62023.0,62020.0,0.08298351]
[1728096279685,0.148427,62023.0,62020.0,0.13941351]
[1728096280091,0.148427,62023.0,62020.0,0.05884818]
[1728096280391,0.148427,62023.0,62020.0,0.08298351]
[1728096280695,0.148427,62023.0,62021.0,0.056429]
[1728096281786,0.147427,62023.0,62021.0,0.056429]
[1728096281988,0.148427,62023.0,62021.0,0.056429]
[1728096282491,0.056429,62021.0,62020.0,0.00241818]
[1728096283997,0.058429,62021.0,62020.0,0.00241818]
[1728096285089,0.419229,62021.0,62020.0,0.00241818]
[1728096285691,0.058429,62021.0,62020.0,0.00241818]
[1728096285892,0.419229,62021.0,62020.0,0.00241818]
[1728096294300,0.058429,62021.0,62020.0,0.00241818]
[1728096294501,0.419229,62021.0,62020.0,0.00241818]
[1728096296501,0.419229,62021.0,62020.0,0.0507105]
[1728096299595,0.509229,62021.0,62020.0,0.0507105]
[1728096300701,0.3628,62021.0,62020.0,0.12323794]
[1728096300896,0.002,62021.0,62020.0,0.14884818]
[1728096301297,0.002,62021.0,62020.0,0.35215681]
[1728096301708,0.002,62021.0,62020.0,0.27171703]
[1728096302003,0.0113,62026.0,62020.0,1.35543703]
[1728096302203,0.0075,62026.0,62025.0,0.22687737]
[1728096302411,0.0038,62031.0,62030.0,0.056421]
[1728096302707,0.0038,62038.0,62035.0,0.056416]
[1728096302907,0.0038,62038.0,62035.0,0.146416]
[1728096303398,0.41028258,62036.0,62035.0,0.146416]
[1728096303995,0.41428258,62036.0,62035.0,0.146416]
[1728096304606,0.41828258,62036.0,62035.0,0.146416]
[1728096304903,0.05748258,62036.0,62035.0,0.146416]
[1728096305108,0.008,62036.0,62035.0,0.146416]
[1728096305706,0.008,62036.0,62035.0,1.230016]
[1728096306312,0.008,62036.0,62035.0,1.25848418]
[1728096306501,0.008,62036.0,62035.0,0.65848418]
[1728096307013,0.008,62036.0,62035.0,0.17488418]
[1728096307217,0.008,62036.0,62035.0,0.08488418]
[1728096307400,0.008,62036.0,62035.0,0.17488418]
[1728096310010,0.008,62036.0,62031.0,0.0012]
[1728096310011,0.056419,62032.0,62031.0,0.0012]
[1728096310311,0.09,62032.0,62026.0,0.0038]
[1728096310515,0.146423,62029.0,62024.0,0.417226]
[1728096310697,0.0038,62034.0,62024.0,0.44696005]
[1728096310698,0.09,62026.0,62024.0,0.44696005]
[1728096310905,0.09,62026.0,62024.0,0.417226]
[1728096311099,0.056426,62025.0,62024.0,0.3608]
[1728096312805,0.057426,62025.0,62024.0,0.3608]
[1728096313510,0.058426,62025.0,62024.0,0.3618]
[1728096314901,0.058426,62025.0,62024.0,0.001]
[1728096319517,0.058426,62025.0,62024.0,0.057426]
[1728096325916,0.058426,62025.0,62024.0,0.12179057]
[1728096328420,0.058426,62025.0,62024.0,0.057426]
[1728096330625,0.002,62025.0,62024.0,0.057426]
[1728096340926,0.002,62025.0,62024.0,0.27682475]
[1728096342634,0.002,62025.0,62024.0,0.27682449]
[1728096346628,0.092,62025.0,62024.0,0.27682449]
[1728096347336,0.092,62025.0,62024.0,0.27682588]
[1728096347635,0.05166157,62025.0,62024.0,0.27682588]
[1728096348031,0.0494902,62025.0,62024.0,0.057426]
[1728096353137,0.1394902,62025.0,62024.0,0.057426]
[1728096353339,0.1959162,62025.0,62024.0,0.057426]
[1728096355949,0.1959162,62025.0,62024.0,0.18029893]
[1728096355950,0.146426,62025.0,62024.0,0.18029893]
[1728096357147,0.146426,62025.0,62024.0,0.18029824]
[1728096360143,0.056426,62025.0,62024.0,0.18029824]
[1728096360947,0.056426,62025.0,62024.0,0.18029796]
[1728096363043,0.056426,62025.0,62024.0,0.10581011]
[1728096364460,0.056426,62025.0,62024.0,0.04938411]
[1728096364644,0.146426,62025.0,62024.0,0.001]
[1728096367056,0.178826,62025.0,62024.0,0.001]
[1728096369954,0.088826,62025.0,62024.0,0.001]
[1728096370153,0.088826,62025.0,62024.0,0.057426]
[1728096370352,0.178826,62025.0,62024.0,0.057426]
[1728096371059,0.22831768,62025.0,62024.0,0.057426]
[1728096371949,0.22831768,62025.0,62024.0,0.001]
[1728096372155,0.28614832,62025.0,62024.0,0.001]
[1728096372461,0.34954832,62025.0,62024.0,0.001]
[1728096374362,0.71034832,62025.0,62024.0,0.001]
[1728096375159,1.79402832,62025.0,62024.0,0.001]
[1728096375462,0.146429,62021.0,62012.0,0.056437]
[1728096375650,0.056437,62012.0,62011.0,0.00241834]
[1728096375853,0.10592868,62012.0,62011.0,0.00241834]
[1728096376055,0.13902868,62012.0,62011.0,0.00241834]
[1728096376262,0.089537,62012.0,62004.0,0.056444]
[1728096376553,0.3608,62009.0,62004.0,0.056445]
[1728096376751,0.09,62005.0,62004.0,0.056445]
[1728096377148,0.09,62005.0,61997.0,0.3608]
[1728096377358,0.09,62001.0,61999.0,0.02859931]
[1728096378056,0.09,62001.0,62000.0,0.48752138]
[1728096378256,0.09,62001.0,62000.0,0.33791406]
[1728096378462,0.09,62001.0,62000.0,0.39436206]
[1728096379069,0.091,62001.0,62000.0,0.39436206]
[1728096379358,0.092,62001.0,62000.0,0.49089673]
[1728096380250,0.092,62001.0,62000.0,0.39436206]
[1728096382268,0.092,62001.0,62000.0,0.47476291]
[1728096383358,0.092,62001.0,62000.0,0.271448]
[1728096385064,0.092,62001.0,62000.0,0.215]
[1728096385260,0.4528,62001.0,62000.0,0.215]
[1728096385565,0.4528,62001.0,62000.0,0.26320055]
[1728096386159,0.4528,62001.0,62000.0,0.215]
[1728096386664,0.509247,62001.0,62000.0,0.215]
[1728096389365,0.53879309,62001.0,62000.0,0.215]
[1728096391868,0.17799309,62001.0,62000.0,0.215]
[1728096392173,0.53879309,62001.0,62000.0,0.215]
[1728096392968,0.48234609,62001.0,62000.0,0.215]
[1728096393168,0.53879309,62001.0,62000.0,0.215]
[1728096398076,0.508247,62001.0,62000.0,0.215]
[1728096398274,0.509247,62001.0,62000.0,0.215]
[1728096398679,0.508247,62001.0,62000.0,0.215]